Workbook

Sheet نموذج معدل دوران المخزون
A1: نموذج معدل دوران المخزون | B1: 2025 | C1: 2026
B2: (ريال سعودي) | C2: (ريال سعودي)
A3: قائمة الدخل
A4: الإيرادات | B4: 200,355 | C4: 150,779
A5: تكلفة البضائع المباعة | B5: 70,525 | C5: 45,162
A6: الربح الإجمالي | B6: =B4-B5 -> 129,830 | C6: 105,617
A7: المصروفات
A8: التسويق والإعلان والترويج | B8: 25,245 | C8: 28,194
A9: الإدارة العامة والإدارية | B9: 11,412 | C9: 15,000
A10: الإهلاك والاستهلاك | B10: 16,080 | C10: 13,132
A11: الفوائد | B11: 1,500 | C11: 3,000
A12: إجمالي المصروفات | B12: =SUM(B8:B11) -> 54,237 | C12: 59,326
A13: الأرباح قبل الضريبة | B13: =B6-B12 -> 75,593 | C13: 46,291
A15: الضرائب | B15: 11,598 | C15: 10,322
A16: الدخل الصافي | B16: =B13-B15 -> 63,995 | C16: 35,969
A18: قائمة الميزانية العامة
A20: الأصول
A21: النقد | B21: 139,550 | C21: 161,050
A22: المديونيات التجارية | B22: 7,539 | C22: 8,179
A23: المخزون | B23: 11,342 | C23: 15,267
A24: الأصول الثابتة والمعدات | B24: 37,521 | C24: 39,389
A25: إجمالي الأصول | B25: =SUM(B21:B24) -> 195,952 | C25: 223,885
A26: الالتزامات
A27: الديون التجارية | B27: 5,671 | C27: 7,061
A28: الديون | B28: 30,000 | C28: 30,000
A29: إجمالي الالتزامات | B29: =SUM(B27:B28) -> 35,671 | C29: 37,061
A30: حقوق المساهمين
A31: رأس المال الخاص | B31: 70,000 | C31: 70,000
A32: الأرباح المبقاة | B32: 90,280 | C32: 116,824
A33: حقوق المساهمين | B33: =SUM(B31:B32) -> 160,280 | C33: 186,824
A34: إجمالي الالتزامات وحقوق المساهمين | B34: =B29+B33 -> 195,951 | C34: 223,885
A36: حساب معدل دوران المخزون
A38: نسبة دوران المخزون | B38: =B5/AVERAGE(B23) -> 6.22 | C38: =C5/AVERAGE(C23,B23) -> 3.39
A39: أيام المخزون | B39: =1/B38*365 -> 58.70 | C39: 107.53
